Body name,Service label,Service divison label,Expenditure category,Detailed expenditure type,Detailed expenditure code,Date paid,Transaction number,Net amount,Capital or revenue,Supplier name
East - North East,East - North East,Construction Services,Supplies and Services,Other Materials,205,03-Aug-11,1108-00001,707.20,R,A Andrews & Sons (Marbles & Tiles)
East - North East,East - North East,Construction Services,Supplies and Services,Other Materials,205,23-Aug-11,1108-00002,707.20,R,A Andrews & Sons (Marbles & Tiles)
Leeds City Council,Childrens Services,Safeguarding Targeted & Specialist,Third Party Payments,Fostering - Placement Support,550,01-Aug-11,1108-00003,"12,200.00",R,A C Construction Ltd
Leeds City Council,City Development,Highways,Capital,Construction,3,17-Aug-11,1108-00004,602.00,C,A D D Loop Cutting Services Ltd
Leeds City Council,City Development,Highways,Supplies and Services,Other Hired And Contracted Services,265,31-Aug-11,1108-00005,"1,525.52",R,A D D Loop Cutting Services Ltd
East - North East,East - North East,Construction Services,Supplies and Services,Other Hired And Contracted Services,265,19-Aug-11,1108-00006,"1,205.82",R,A D Simpson Construction Ltd
Leeds City Council,City Development,Highways,Capital,Construction,3,24-Aug-11,1108-00007,"186,865.05",C,A E Yates Ltd
Leeds City Council,Central & Corporate Functions,Commercial Services Trading Services,Supplies and Services,Operational Materials,205,31-Aug-11,1108-00008,"2,508.00",R,A J HPump Supply & Repair Ltd
Leeds City Council,City Development,Recreation,Supplies and Services,Publication And Promotion,267,16-Aug-11,1108-00009,450.00,R,A J Paraskos
Leeds City Council,City Development,Recreation,Supplies and Services,Publication And Promotion,267,19-Aug-11,1108-00010,450.00,R,A J Paraskos
Leeds City Council,City Development,Recreation,Supplies and Services,Publication And Promotion,267,19-Aug-11,1108-00011,450.00,R,A J Paraskos
Leeds City Council,City Development,Recreation,Supplies and Services,Publication And Promotion,267,19-Aug-11,1108-00012,450.00,R,A J Paraskos
Leeds City Council,City Development,Recreation,Supplies and Services,Resaleable Materials,204,24-Aug-11,1108-00013,680.40,R,A J Promotions
Leeds City Council,City Development,Recreation,Supplies and Services,Resaleable Materials,204,26-Aug-11,1108-00014,"1,074.95",R,A J Promotions
Leeds City Council,Childrens Services,Safeguarding Targeted & Specialist,Third Party Payments,General External Residential Placements,507,12-Aug-11,1108-00015,"13,000.00",R,A Lowrie Care Service Limited
Leeds City Council,Childrens Services,Safeguarding Targeted & Specialist,Third Party Payments,General External Residential Placements,507,12-Aug-11,1108-00016,"14,000.00",R,A Lowrie Care Service Limited
Leeds City Council,Central & Corporate Functions,Customer Services,Supplies and Services,Other Hired And Contracted Services,265,02-Aug-11,1108-00017,675.25,R,A Mohammed
Leeds City Council,Environment & Neighbourhoods,Statutory Housing,Transport,Public Transport Expenses,310,12-Aug-11,1108-00018,"2,305.00",R,A Zoom Taxis
Leeds City Council,Central & Corporate Functions,Support And Facilities Trading Services,Supplies and Services,Operational Materials,205,31-Aug-11,1108-00019,498.75,R,Aalco Leeds
Leeds City Council,Adult Social Care,Services For Older People - 65 And Over,Third Party Payments,Residential Care Emi,571,03-Aug-11,1108-00020,"1,170.76",R,Abbey Lea Residential Care Home
Leeds City Council,Adult Social Care,Services For Older People - 65 And Over,Third Party Payments,Residential Care Emi,571,31-Aug-11,1108-00021,"1,170.76",R,Abbey Lea Residential Care Home
Leeds City Council,Adult Social Care,Services For Adults Under 65 Mental/Dis,Third Party Payments,Residential,580,03-Aug-11,1108-00022,"1,163.80",R,Abbeydale Care Home
Leeds City Council,Adult Social Care,Services For Adults Under 65 Mental/Dis,Third Party Payments,Residential,580,31-Aug-11,1108-00023,"1,163.80",R,Abbeydale Care Home
Leeds City Council,Environment & Neighbourhoods,Belle Isle,Capital,Construction,3,02-Aug-11,1108-00024,"1,712.95",C,Able Bathing & Building Contractors Ltd
Leeds City Council,Environment & Neighbourhoods,Environmental Health,Capital,Construction,3,03-Aug-11,1108-00025,"2,890.00",C,Able Bathing & Building Contractors Ltd
Leeds City Council,Environment & Neighbourhoods,South South East,Capital,Construction,3,05-Aug-11,1108-00026,"5,734.00",C,Able Bathing & Building Contractors Ltd
Leeds City Council,Environment & Neighbourhoods,Environmental Health,Capital,Construction,3,10-Aug-11,1108-00027,"4,150.00",C,Able Bathing & Building Contractors Ltd
Leeds City Council,Environment & Neighbourhoods,Environmental Health,Capital,Construction,3,22-Aug-11,1108-00028,"4,150.00",C,Able Bathing & Building Contractors Ltd
Leeds City Council,Environment & Neighbourhoods,Environmental Health,Capital,Construction,3,22-Aug-11,1108-00029,"2,890.00",C,Able Bathing & Building Contractors Ltd
Leeds City Council,City Development,Recreation,Supplies and Services,Other Hired And Contracted Services,265,19-Aug-11,1108-00030,"4,645.00",R,Abyss Recycling
Leeds City Council,Childrens Services,Learning Skills & Universal,Employees,Agency Staff,008,04-Aug-11,1108-00031,"1,044.00",R,Academic Appointments Ltd
Leeds City Council,Childrens Services,Learning Skills & Universal,Employees,Agency Staff,008,11-Aug-11,1108-00032,"1,044.00",R,Academic Appointments Ltd
Leeds City Council,Environment & Neighbourhoods,Environmental Health,Capital,Construction,3,04-Aug-11,1108-00033,"2,241.00",C,Accent Homes Ltd
Leeds City Council,Central & Corporate Functions,Leeds Shared Services,Supplies and Services,Computer Software & Equipment,214,24-Aug-11,1108-00034,"5,162.60",R,Accenture (Uk) Ltd
East - North East,East - North East,Construction Services,Supplies and Services,Miscellaneous Expenditure,208,15-Aug-11,1108-00035,"39,360.00",R,Access Platform Sales Limited
East - North East,East - North East,Construction Services,Supplies and Services,Miscellaneous Expenditure,208,15-Aug-11,1108-00036,528.00,R,Access Platform Sales Limited
Leeds City Council,City Development,Recreation,Supplies and Services,Security Services(Non Infrastructure),262,01-Aug-11,1108-00037,"1,643.28",R,Acclaimed Security Services
Leeds City Council,City Development,Recreation,Supplies and Services,Security Services(Non Infrastructure),262,01-Aug-11,1108-00038,895.44,R,Acclaimed Security Services
Leeds City Council,City Development,Recreation,Supplies and Services,Security Services(Non Infrastructure),262,01-Aug-11,1108-00039,"1,230.00",R,Acclaimed Security Services
Leeds City Council,City Development,Recreation,Employees,Agency Staff,008,01-Aug-11,1108-00040,808.01,R,Acclaimed Security Services
Leeds City Council,City Development,Recreation,Supplies and Services,Security Services(Non Infrastructure),262,01-Aug-11,1108-00041,"1,436.64",R,Acclaimed Security Services
Leeds City Council,City Development,Recreation,Employees,Agency Staff,008,02-Aug-11,1108-00042,"1,752.96",R,Acclaimed Security Services
Leeds City Council,City Development,Recreation,Employees,Agency Staff,008,04-Aug-11,1108-00043,808.01,R,Acclaimed Security Services
Leeds City Council,City Development,Recreation,Supplies and Services,Security Services(Non Infrastructure),262,04-Aug-11,1108-00044,"1,530.12",R,Acclaimed Security Services
Leeds City Council,City Development,Recreation,Employees,Agency Staff,008,05-Aug-11,1108-00045,657.36,R,Acclaimed Security Services
Leeds City Council,City Development,Recreation,Employees,Agency Staff,008,05-Aug-11,1108-00046,511.28,R,Acclaimed Security Services
Leeds City Council,City Development,Recreation,Supplies and Services,Security Services(Non Infrastructure),262,11-Aug-11,1108-00047,"1,431.72",R,Acclaimed Security Services
Leeds City Council,City Development,Recreation,Employees,Agency Staff,008,11-Aug-11,1108-00048,438.24,R,Acclaimed Security Services
Leeds City Council,City Development,Recreation,Supplies and Services,Security Services(Non Infrastructure),262,11-Aug-11,1108-00049,"1,161.12",R,Acclaimed Security Services
Leeds City Council,City Development,Recreation,Supplies and Services,Security Services(Non Infrastructure),262,11-Aug-11,1108-00050,"1,062.72",R,Acclaimed Security Services
Leeds City Council,City Development,Recreation,Employees,Agency Staff,008,11-Aug-11,1108-00051,"1,173.21",R,Acclaimed Security Services
Leeds City Council,City Development,Recreation,Supplies and Services,Security Services(Non Infrastructure),262,11-Aug-11,1108-00052,"2,169.72",R,Acclaimed Security Services
Leeds City Council,City Development,Recreation,Employees,Agency Staff,008,19-Aug-11,1108-00053,808.01,R,Acclaimed Security Services
Leeds City Council,City Development,Recreation,Supplies and Services,Security Services(Non Infrastructure),262,19-Aug-11,1108-00054,"1,886.82",R,Acclaimed Security Services
Leeds City Council,Insurance,Insurance,Supplies and Services,Insurance Claims,248,04-Aug-11,1108-00055,628.19,R,Accountant General Of The Senior Court
Leeds City Council,Childrens Services,Learning Skills & Universal,Supplies and Services,Other Hired And Contracted Services,265,01-Aug-11,1108-00056,547.50,R,Ace Container Services Limited
West - North West,West - North West,Corporate Services,Supplies and Services,Information Technology - Agency,215,08-Aug-11,1108-00057,"2,051.68",R,Achievetech Solutions Ltd
Leeds City Council,Adult Social Care,Services For Older People - 65 And Over,Third Party Payments,Nursing Home,570,03-Aug-11,1108-00058,"1,185.08",R,Ackworth House
Leeds City Council,Childrens Services,Safeguarding Targeted & Specialist,Third Party Payments,Services Rendered By Schools,506,26-Aug-11,1108-00059,"14,850.00",R,Ackworth School
Leeds City Council,Central & Corporate Functions,Commercial Services Trading Services,Supplies and Services,Other Hired And Contracted Services,265,01-Aug-11,1108-00060,"1,120.00",R,Acm
Leeds City Council,Central & Corporate Functions,Commercial Services Trading Services,Supplies and Services,Other Hired And Contracted Services,265,12-Aug-11,1108-00061,"1,570.00",R,Acm
Leeds City Council,Central & Corporate Functions,Commercial Services Trading Services,Supplies and Services,Other Hired And Contracted Services,265,31-Aug-11,1108-00062,780.00,R,Acm
Leeds City Council,Central & Corporate Functions,Commercial Services Trading Services,Supplies and Services,Other Hired And Contracted Services,265,01-Aug-11,1108-00063,"1,234.00",R,Acme
Leeds City Council,Central & Corporate Functions,Commercial Services Trading Services,Supplies and Services,Other Hired And Contracted Services,265,01-Aug-11,1108-00064,"1,184.00",R,Acme
Leeds City Council,Central & Corporate Functions,Commercial Services Trading Services,Supplies and Services,Other Hired And Contracted Services,265,01-Aug-11,1108-00065,"1,234.00",R,Acme
Leeds City Council,Central & Corporate Functions,Commercial Services Trading Services,Supplies and Services,Other Hired And Contracted Services,265,01-Aug-11,1108-00066,"1,234.00",R,Acme
Leeds City Council,Central & Corporate Functions,Commercial Services Trading Services,Supplies and Services,"Crockery, Cutlery & Utensils",221,03-Aug-11,1108-00067,970.00,R,Acme
Leeds City Council,Central & Corporate Functions,Commercial Services Trading Services,Supplies and Services,Operational Furniture And Equipment,203,09-Aug-11,1108-00068,"4,748.00",R,Acme
Leeds City Council,Central & Corporate Functions,Commercial Services Trading Services,Supplies and Services,"Crockery, Cutlery & Utensils",221,30-Aug-11,1108-00069,"1,660.00",R,Acme
Leeds City Council,Central & Corporate Functions,Commercial Services Trading Services,Supplies and Services,Other Hired And Contracted Services,265,30-Aug-11,1108-00070,"1,091.00",R,Acme
Leeds City Council,Central & Corporate Functions,Commercial Services Trading Services,Supplies and Services,Operational Furniture And Equipment,203,30-Aug-11,1108-00071,735.00,R,Acme
Leeds City Council,Central & Corporate Functions,Commercial Services Trading Services,Supplies and Services,Operational Furniture And Equipment,203,30-Aug-11,1108-00072,"3,320.00",R,Acme
Leeds City Council,City Development,"Libraries, Arts & Heritage",Supplies and Services,Operational Furniture And Equipment,203,26-Aug-11,1108-00073,"22,000.00",R,Acorn Event Solutions Ltd
Leeds City Council,Childrens Services,Safeguarding Targeted & Specialist,Third Party Payments,Adoptions - Allowances,560,05-Aug-11,1108-00074,444.54,R,Action For Children
Leeds City Council,Childrens Services,Safeguarding Targeted & Specialist,Third Party Payments,Adoptions - Allowances,560,05-Aug-11,1108-00075,714.67,R,Action For Children
Leeds City Council,Childrens Services,Safeguarding Targeted & Specialist,Third Party Payments,Independent Fostering Agencies,509,08-Aug-11,1108-00076,"2,720.76",R,Action For Children
Leeds City Council,Childrens Services,Safeguarding Targeted & Specialist,Third Party Payments,Independent Fostering Agencies,509,12-Aug-11,1108-00077,"4,650.00",R,Action For Children
Leeds City Council,Childrens Services,Safeguarding Targeted & Specialist,Third Party Payments,Independent Fostering Agencies,509,12-Aug-11,1108-00078,"4,774.00",R,Action For Children
Leeds City Council,Childrens Services,Safeguarding Targeted & Specialist,Third Party Payments,Independent Fostering Agencies,509,12-Aug-11,1108-00079,"4,774.00",R,Action For Children
Leeds City Council,Childrens Services,Safeguarding Targeted & Specialist,Third Party Payments,Adoptions - Fees,559,16-Aug-11,1108-00080,"2,000.00",R,Action For Children
Leeds City Council,Childrens Services,Safeguarding Targeted & Specialist,Third Party Payments,Adoptions - Allowances,560,17-Aug-11,1108-00081,644.00,R,Action For Children
Leeds City Council,Childrens Services,Safeguarding Targeted & Specialist,Third Party Payments,Adoptions - Allowances,560,17-Aug-11,1108-00082,644.00,R,Action For Children
Leeds City Council,Childrens Services,Safeguarding Targeted & Specialist,Third Party Payments,Adoptions - Allowances,560,30-Aug-11,1108-00083,644.00,R,Action For Children
Leeds City Council,Childrens Services,Safeguarding Targeted & Specialist,Third Party Payments,Adoptions - Allowances,560,30-Aug-11,1108-00084,825.00,R,Action For Children
Leeds City Council,Childrens Services,Safeguarding Targeted & Specialist,Third Party Payments,Adoptions - Allowances,560,30-Aug-11,1108-00085,644.00,R,Action For Children
Leeds City Council,City Development,Recreation,Supplies and Services,Operational Furniture And Equipment,203,25-Aug-11,1108-00086,499.95,R,Activinstinct Ltd
Leeds City Council,City Development,Recreation,Supplies and Services,Resaleable Materials,204,17-Aug-11,1108-00087,600.40,R,Acushnet Europe Limited
Leeds City Council,Central & Corporate Functions,Support And Facilities Trading Services,Supplies and Services,Other Hired And Contracted Services,265,25-Aug-11,1108-00088,"1,494.00",R,Ad3 Envelope Printers Limited
Leeds City Council,Central & Corporate Functions,Support And Facilities Trading Services,Supplies and Services,Other Hired And Contracted Services,265,25-Aug-11,1108-00089,512.50,R,Ad3 Envelope Printers Limited
Leeds City Council,Environment & Neighbourhoods,West North West,Capital,Other Costs,7,26-Aug-11,1108-00090,700.00,C,Adams Consulting Engineers Limited
Leeds City Council,Environment & Neighbourhoods,West North West,Capital,Other Costs,7,30-Aug-11,1108-00091,900.00,C,Adams Consulting Engineers Limited
Leeds City Council,City Development,Planning & Sustainable Development,Supplies and Services,Operational Materials,205,29-Jul-11,1108-00092,465.00,R,Addis Housewares Ltd
Leeds City Council,City Development,Recreation,Supplies and Services,Other Hired And Contracted Services,265,01-Aug-11,1108-00093,"7,420.00",R,Addlestone Moumouris Orme & Sixsmith
Leeds City Council,Childrens Services,Safeguarding Targeted & Specialist,Premises,Grounds Maintenance Work,111,19-Aug-11,1108-00094,670.00,R,Adel Farm And Gardens
Leeds City Council,Environment & Neighbourhoods,Safer Leeds Drugs Team,Third Party Payments,Services Rendered By Voluntary Sector,505,10-Aug-11,1108-00095,"12,500.00",R,Ads
Leeds City Council,Environment & Neighbourhoods,Safer Leeds Drugs Team,Third Party Payments,Services Rendered By Voluntary Sector,505,10-Aug-11,1108-00096,"12,500.00",R,Ads
Leeds City Council,Childrens Services,Learning Skills & Universal,Premises,Fixtures & Fittings,131,19-Aug-11,1108-00097,"1,464.04",R,Adt Fire And Security
Leeds City Council,City Development,Recreation,Premises,Premises Security Services,162,19-Aug-11,1108-00098,"1,009.20",R,Adt Fire And Security
East - North East,East - North East,Housing Services,Premises,Leisure Security Services Recharges,162,23-Aug-11,1108-00099,761.98,R,Adt Fire And Security
East - North East,East - North East,Housing Services,Premises,Leisure Security Services Recharges,162,23-Aug-11,1108-00100,752.10,R,Adt Fire And Security
Leeds City Council,City Development,Asset Management Services,Premises,Maintenance Of Buildings,101,31-Aug-11,1108-00101,458.00,R,Adt Fire And Security
Leeds City Council as Accountable Body,Social Services Pooled Budgets,Jcs For People With Learning Disabilitie,Third Party Payments,Residential,580,03-Aug-11,1108-00102,782.81,R,Advantage Healthcare Nursing &
Leeds City Council as Accountable Body,Social Services Pooled Budgets,Jcs For People With Learning Disabilitie,Third Party Payments,Residential,580,03-Aug-11,1108-00103,"18,119.36",R,Advitam Ltd
Leeds City Council as Accountable Body,Social Services Pooled Budgets,Jcs For People With Learning Disabilitie,Third Party Payments,Residential,580,31-Aug-11,1108-00104,"17,892.96",R,Advitam Ltd
Leeds City Council,Adult Social Care,Services For Adults Under 65 Mental/Dis,Third Party Payments,Payments To Voluntary Organisations,561,19-Aug-11,1108-00105,"23,156.00",R,Advocacy For Mental Health And Dementia
Leeds City Council as Accountable Body,Social Services Pooled Budgets,Jcs For People With Learning Disabilitie,Third Party Payments,Residential,580,01-Aug-11,1108-00106,"21,843.99",R,Affinity Trust
Leeds City Council as Accountable Body,Social Services Pooled Budgets,Jcs For People With Learning Disabilitie,Third Party Payments,Day Centre,564,01-Aug-11,1108-00107,"3,299.08",R,Affinity Trust
Leeds City Council as Accountable Body,Social Services Pooled Budgets,Jcs For People With Learning Disabilitie,Third Party Payments,Home Care,568,01-Aug-11,1108-00108,"4,222.40",R,Affinity Trust
Leeds City Council as Accountable Body,Social Services Pooled Budgets,Jcs For People With Learning Disabilitie,Third Party Payments,Day Centre,564,01-Aug-11,1108-00109,"2,874.76",R,Affinity Trust
Leeds City Council as Accountable Body,Social Services Pooled Budgets,Jcs For People With Learning Disabilitie,Third Party Payments,Day Centre,564,01-Aug-11,1108-00110,"1,603.36",R,Affinity Trust
Leeds City Council as Accountable Body,Social Services Pooled Budgets,Jcs For People With Learning Disabilitie,Third Party Payments,Home Care,568,02-Aug-11,1108-00111,841.00,R,Affinity Trust
Leeds City Council as Accountable Body,Social Services Pooled Budgets,Jcs For People With Learning Disabilitie,Third Party Payments,Home Care,568,02-Aug-11,1108-00112,952.00,R,Affinity Trust
Leeds City Council as Accountable Body,Social Services Pooled Budgets,Jcs For People With Learning Disabilitie,Third Party Payments,Day Centre,564,02-Aug-11,1108-00113,570.80,R,Affinity Trust
Leeds City Council,Adult Social Care,Services For Older People Under 65 P/Dis,Third Party Payments,Home Care,568,02-Aug-11,1108-00114,"1,482.35",R,Affinity Trust
Leeds City Council as Accountable Body,Social Services Pooled Budgets,Jcs For People With Learning Disabilitie,Third Party Payments,Home Care,568,02-Aug-11,1108-00115,"1,210.34",R,Affinity Trust
Leeds City Council as Accountable Body,Social Services Pooled Budgets,Jcs For People With Learning Disabilitie,Third Party Payments,Home Care,568,02-Aug-11,1108-00116,"1,009.20",R,Affinity Trust
Leeds City Council,Adult Social Care,Services For Older People Under 65 P/Dis,Third Party Payments,Home Care,568,02-Aug-11,1108-00117,972.30,R,Affinity Trust
Leeds City Council,Adult Social Care,Services For Older People Under 65 P/Dis,Third Party Payments,Home Care,568,02-Aug-11,1108-00118,"1,156.98",R,Affinity Trust
Leeds City Council,Adult Social Care,Services For Adults Under 65 Mental/Dis,Third Party Payments,Home Care,568,02-Aug-11,1108-00119,819.90,R,Affinity Trust
Leeds City Council as Accountable Body,Social Services Pooled Budgets,Jcs For People With Learning Disabilitie,Third Party Payments,Home Care,568,02-Aug-11,1108-00120,"1,607.80",R,Affinity Trust
Leeds City Council,Adult Social Care,Services For Older People Under 65 P/Dis,Third Party Payments,Home Care,568,02-Aug-11,1108-00121,"2,172.90",R,Affinity Trust
Leeds City Council as Accountable Body,Social Services Pooled Budgets,Jcs For People With Learning Disabilitie,Third Party Payments,Home Care,568,02-Aug-11,1108-00122,589.00,R,Affinity Trust
Leeds City Council,Adult Social Care,Services For Older People Under 65 P/Dis,Third Party Payments,Home Care,568,02-Aug-11,1108-00123,"1,719.75",R,Affinity Trust
Leeds City Council as Accountable Body,Social Services Pooled Budgets,Jcs For People With Learning Disabilitie,Third Party Payments,Day Centre,564,02-Aug-11,1108-00124,"2,724.99",R,Affinity Trust
Leeds City Council as Accountable Body,Social Services Pooled Budgets,Jcs For People With Learning Disabilitie,Third Party Payments,Day Centre,564,02-Aug-11,1108-00125,"1,918.62",R,Affinity Trust
Leeds City Council as Accountable Body,Social Services Pooled Budgets,Jcs For People With Learning Disabilitie,Third Party Payments,Day Centre,564,02-Aug-11,1108-00126,"1,206.72",R,Affinity Trust
Leeds City Council as Accountable Body,Social Services Pooled Budgets,Jcs For People With Learning Disabilitie,Third Party Payments,Residential,580,02-Aug-11,1108-00127,"1,611.39",R,Affinity Trust
Leeds City Council as Accountable Body,Social Services Pooled Budgets,Jcs For People With Learning Disabilitie,Third Party Payments,Residential,580,03-Aug-11,1108-00128,"-1,852.41",R,Affinity Trust
Leeds City Council as Accountable Body,Social Services Pooled Budgets,Jcs For People With Learning Disabilitie,Third Party Payments,Residential,580,03-Aug-11,1108-00129,"1,450.17",R,Affinity Trust
Leeds City Council as Accountable Body,Social Services Pooled Budgets,Jcs For People With Learning Disabilitie,Third Party Payments,Residential,580,03-Aug-11,1108-00130,"1,852.41",R,Affinity Trust
Leeds City Council as Accountable Body,Social Services Pooled Budgets,Jcs For People With Learning Disabilitie,Third Party Payments,Home Care,568,05-Aug-11,1108-00131,564.30,R,Affinity Trust
Leeds City Council as Accountable Body,Social Services Pooled Budgets,Jcs For People With Learning Disabilitie,Third Party Payments,Day Centre,564,05-Aug-11,1108-00132,"1,316.70",R,Affinity Trust
Leeds City Council as Accountable Body,Social Services Pooled Budgets,Jcs For People With Learning Disabilitie,Third Party Payments,Day Centre,564,05-Aug-11,1108-00133,"3,143.04",R,Affinity Trust
Leeds City Council as Accountable Body,Social Services Pooled Budgets,Jcs For People With Learning Disabilitie,Third Party Payments,Day Centre,564,05-Aug-11,1108-00134,586.60,R,Affinity Trust
Leeds City Council as Accountable Body,Social Services Pooled Budgets,Jcs For People With Learning Disabilitie,Third Party Payments,Home Care,568,05-Aug-11,1108-00135,"1,005.60",R,Affinity Trust
Leeds City Council as Accountable Body,Social Services Pooled Budgets,Jcs For People With Learning Disabilitie,Third Party Payments,Home Care,568,05-Aug-11,1108-00136,"1,257.00",R,Affinity Trust
Leeds City Council as Accountable Body,Social Services Pooled Budgets,Jcs For People With Learning Disabilitie,Third Party Payments,Home Care,568,05-Aug-11,1108-00137,"1,407.84",R,Affinity Trust
Leeds City Council as Accountable Body,Social Services Pooled Budgets,Jcs For People With Learning Disabilitie,Third Party Payments,Day Centre,564,05-Aug-11,1108-00138,"2,933.00",R,Affinity Trust
Leeds City Council as Accountable Body,Social Services Pooled Budgets,Jcs For People With Learning Disabilitie,Third Party Payments,Day Centre,564,05-Aug-11,1108-00139,"2,720.45",R,Affinity Trust
Leeds City Council as Accountable Body,Social Services Pooled Budgets,Jcs For People With Learning Disabilitie,Third Party Payments,Residential,580,05-Aug-11,1108-00140,"1,307.28",R,Affinity Trust
Leeds City Council as Accountable Body,Social Services Pooled Budgets,Jcs For People With Learning Disabilitie,Third Party Payments,Day Centre,564,05-Aug-11,1108-00141,893.48,R,Affinity Trust
Leeds City Council as Accountable Body,Social Services Pooled Budgets,Jcs For People With Learning Disabilitie,Third Party Payments,Residential,580,08-Aug-11,1108-00142,"10,397.89",R,Affinity Trust
Leeds City Council as Accountable Body,Social Services Pooled Budgets,Jcs For People With Learning Disabilitie,Third Party Payments,Day Centre,564,09-Aug-11,1108-00143,"4,308.50",R,Affinity Trust
Leeds City Council as Accountable Body,Social Services Pooled Budgets,Jcs For People With Learning Disabilitie,Third Party Payments,Day Centre,564,09-Aug-11,1108-00144,"1,944.40",R,Affinity Trust
Leeds City Council as Accountable Body,Social Services Pooled Budgets,Jcs For People With Learning Disabilitie,Third Party Payments,Residential,580,09-Aug-11,1108-00145,"1,999.98",R,Affinity Trust
Leeds City Council,Adult Social Care,Services For Older People - 65 And Over,Third Party Payments,Residential,580,10-Aug-11,1108-00146,658.35,R,Affinity Trust
Leeds City Council as Accountable Body,Social Services Pooled Budgets,Jcs For People With Learning Disabilitie,Third Party Payments,Home Care,568,10-Aug-11,1108-00147,"5,050.00",R,Affinity Trust
Leeds City Council as Accountable Body,Social Services Pooled Budgets,Jcs For People With Learning Disabilitie,Third Party Payments,Home Care,568,10-Aug-11,1108-00148,"6,193.32",R,Affinity Trust
Leeds City Council,Adult Social Care,Services For Older People Under 65 P/Dis,Third Party Payments,Home Care,568,11-Aug-11,1108-00149,"1,185.88",R,Affinity Trust
Leeds City Council as Accountable Body,Social Services Pooled Budgets,Jcs For People With Learning Disabilitie,Third Party Payments,Day Centre,564,17-Aug-11,1108-00150,"26,239.11",R,Affinity Trust
Leeds City Council as Accountable Body,Social Services Pooled Budgets,Jcs For People With Learning Disabilitie,Third Party Payments,Home Care,568,17-Aug-11,1108-00151,"39,453.18",R,Affinity Trust
Leeds City Council as Accountable Body,Social Services Pooled Budgets,Jcs For People With Learning Disabilitie,Third Party Payments,Home Care,568,17-Aug-11,1108-00152,"38,368.98",R,Affinity Trust
Leeds City Council as Accountable Body,Social Services Pooled Budgets,Jcs For People With Learning Disabilitie,Third Party Payments,Residential,580,17-Aug-11,1108-00153,"81,751.30",R,Affinity Trust
Leeds City Council as Accountable Body,Social Services Pooled Budgets,Jcs For People With Learning Disabilitie,Third Party Payments,Residential,580,17-Aug-11,1108-00154,"82,734.35",R,Affinity Trust
Leeds City Council as Accountable Body,Social Services Pooled Budgets,Jcs For People With Learning Disabilitie,Third Party Payments,Residential,580,17-Aug-11,1108-00155,"65,188.80",R,Affinity Trust
Leeds City Council as Accountable Body,Social Services Pooled Budgets,Jcs For People With Learning Disabilitie,Third Party Payments,Residential,580,17-Aug-11,1108-00156,"55,588.48",R,Affinity Trust
Leeds City Council as Accountable Body,Social Services Pooled Budgets,Jcs For People With Learning Disabilitie,Third Party Payments,Residential,580,17-Aug-11,1108-00157,"10,397.89",R,Affinity Trust
Leeds City Council as Accountable Body,Social Services Pooled Budgets,Jcs For People With Learning Disabilitie,Third Party Payments,Residential,580,25-Aug-11,1108-00158,804.48,R,Affinity Trust
Leeds City Council as Accountable Body,Social Services Pooled Budgets,Jcs For People With Learning Disabilitie,Third Party Payments,Home Care,568,25-Aug-11,1108-00159,"3,767.68",R,Affinity Trust
Leeds City Council as Accountable Body,Social Services Pooled Budgets,Jcs For People With Learning Disabilitie,Third Party Payments,Day Centre,564,25-Aug-11,1108-00160,"-2,111.76",R,Affinity Trust
Leeds City Council as Accountable Body,Social Services Pooled Budgets,Jcs For People With Learning Disabilitie,Third Party Payments,Home Care,568,25-Aug-11,1108-00161,"3,848.08",R,Affinity Trust
Leeds City Council as Accountable Body,Social Services Pooled Budgets,Jcs For People With Learning Disabilitie,Third Party Payments,Home Care,568,25-Aug-11,1108-00162,"3,848.08",R,Affinity Trust
Leeds City Council as Accountable Body,Social Services Pooled Budgets,Jcs For People With Learning Disabilitie,Third Party Payments,Home Care,568,26-Aug-11,1108-00163,538.24,R,Affinity Trust
Leeds City Council as Accountable Body,Social Services Pooled Budgets,Jcs For People With Learning Disabilitie,Third Party Payments,Home Care,568,26-Aug-11,1108-00164,510.75,R,Affinity Trust
Leeds City Council as Accountable Body,Social Services Pooled Budgets,Jcs For People With Learning Disabilitie,Third Party Payments,Day Centre,564,02-Aug-11,1108-00165,"4,872.00",R,Affinity Trust North Divisional Office
Leeds City Council as Accountable Body,Social Services Pooled Budgets,Jcs For People With Learning Disabilitie,Third Party Payments,Day Centre,564,02-Aug-11,1108-00166,"3,312.96",R,Affinity Trust North Divisional Office
Leeds City Council as Accountable Body,Social Services Pooled Budgets,Jcs For People With Learning Disabilitie,Third Party Payments,Residential,580,02-Aug-11,1108-00167,"3,495.34",R,Affinity Trust North Divisional Office
Leeds City Council as Accountable Body,Social Services Pooled Budgets,Jcs For People With Learning Disabilitie,Third Party Payments,Home Care,568,05-Aug-11,1108-00168,806.10,R,Affinity Trust North Divisional Office
Leeds City Council as Accountable Body,Social Services Pooled Budgets,Jcs For People With Learning Disabilitie,Third Party Payments,Home Care,568,09-Aug-11,1108-00169,639.16,R,Affinity Trust North Divisional Office
Leeds City Council as Accountable Body,Social Services Pooled Budgets,Jcs For People With Learning Disabilitie,Third Party Payments,Residential,580,16-Aug-11,1108-00170,"1,121.40",R,Affinity Trust North Divisional Office
Leeds City Council as Accountable Body,Social Services Pooled Budgets,Jcs For People With Learning Disabilitie,Third Party Payments,Day Centre,564,17-Aug-11,1108-00171,"23,819.61",R,Affinity Trust North Divisional Office
Leeds City Council as Accountable Body,Social Services Pooled Budgets,Jcs For People With Learning Disabilitie,Third Party Payments,Residential,580,17-Aug-11,1108-00172,"12,409.02",R,Affinity Trust North Divisional Office
Leeds City Council as Accountable Body,Social Services Pooled Budgets,Jcs For People With Learning Disabilitie,Third Party Payments,Home Care,568,25-Aug-11,1108-00173,"2,027.96",R,Affinity Trust North Divisional Office
Leeds City Council as Accountable Body,Social Services Pooled Budgets,Jcs For People With Learning Disabilitie,Third Party Payments,Home Care,568,25-Aug-11,1108-00174,"1,818.46",R,Affinity Trust North Divisional Office
Leeds City Council,Adult Social Care,Services For Older People - 65 And Over,Third Party Payments,Residential,580,26-Aug-11,1108-00175,504.60,R,Affinity Trust North Divisional Office
Leeds City Council as Accountable Body,Social Services Pooled Budgets,Jcs For People With Learning Disabilitie,Third Party Payments,Home Care,568,31-Aug-11,1108-00176,538.24,R,Affinity Trust North Divisional Office
Leeds City Council as Accountable Body,Social Services Pooled Budgets,Jcs For People With Learning Disabilitie,Third Party Payments,Home Care,568,31-Aug-11,1108-00177,"2,018.40",R,Affinity Trust North Divisional Office
Leeds City Council,Environment & Neighbourhoods,Strategy & Commissioning,Third Party Payments,Supporting Ppl - Block Gross Chargeable,514,12-Aug-11,1108-00178,"3,957.68",R,Age Uk Leeds
Leeds City Council,Central & Corporate Functions,Commercial Services Trading Services,Supplies and Services,Other Hired And Contracted Services,265,12-Aug-11,1108-00179,"13,500.00",R,Age Uk Leeds
Leeds City Council,Adult Social Care,Other Generic Services,Third Party Payments,Payments To Voluntary Organisations,561,17-Aug-11,1108-00180,"22,248.00",R,Age Uk Leeds
Leeds City Council,Insurance,Insurance,Supplies and Services,Insurance Claims,248,11-Aug-11,1108-00181,460.11,R,Ageas
Leeds City Council,City Development,Highways,Capital,Construction,3,10-Aug-11,1108-00182,"49,400.00",C,Aggregate Industries Uk Ltd
Leeds City Council,Adult Social Care,Services For Older People Under 65 P/Dis,Third Party Payments,Residential,580,03-Aug-11,1108-00183,"5,652.04",R,Agricola House
Leeds City Council,Adult Social Care,Services For Older People Under 65 P/Dis,Third Party Payments,Residential,580,31-Aug-11,1108-00184,"5,652.04",R,Agricola House
Leeds City Council,Insurance,Insurance,Supplies and Services,Insurance Claims,248,18-Aug-11,1108-00185,"1,279.40",R,Ai Claims Solutionsltd
Leeds City Council as Accountable Body,Social Services Pooled Budgets,Leeds Community Equip Store Pooled Budgt,Supplies and Services,Other Equipment,203,15-Aug-11,1108-00186,926.50,R,Aidapt Bathrooms Ltd
Leeds City Council as Accountable Body,Social Services Pooled Budgets,Leeds Community Equip Store Pooled Budgt,Supplies and Services,Other Equipment,203,19-Aug-11,1108-00187,588.00,R,Aidapt Bathrooms Ltd
Leeds City Council as Accountable Body,Social Services Pooled Budgets,Leeds Community Equip Store Pooled Budgt,Supplies and Services,Other Equipment,203,19-Aug-11,1108-00188,"1,075.00",R,Aidapt Bathrooms Ltd
Leeds City Council as Accountable Body,Social Services Pooled Budgets,Leeds Community Equip Store Pooled Budgt,Supplies and Services,Other Equipment,203,23-Aug-11,1108-00189,"5,313.30",R,Aidapt Bathrooms Ltd
Leeds City Council as Accountable Body,Social Services Pooled Budgets,Leeds Community Equip Store Pooled Budgt,Supplies and Services,Other Equipment,203,23-Aug-11,1108-00190,"2,628.60",R,Aidapt Bathrooms Ltd
Leeds City Council,City Development,Economic Development,Capital,Construction,3,24-Aug-11,1108-00191,500.00,C,Aig London Limited In Administration
Leeds City Council,City Development,Highways,Premises,Grounds Maintenance Work,111,16-Aug-11,1108-00192,"10,324.08",R,Ainsty Timber Marketing Ltd
Leeds City Council,City Development,Highways,Premises,Grounds Maintenance Work,111,16-Aug-11,1108-00193,519.56,R,Ainsty Timber Marketing Ltd
Leeds City Council,City Development,Highways,Premises,Grounds Maintenance Work,111,16-Aug-11,1108-00194,598.37,R,Ainsty Timber Marketing Ltd
Leeds City Council,City Development,Highways,Premises,Grounds Maintenance Work,111,16-Aug-11,1108-00195,"4,667.11",R,Ainsty Timber Marketing Ltd
Leeds City Council,City Development,Highways,Premises,Grounds Maintenance Work,111,16-Aug-11,1108-00196,"4,987.44",R,Ainsty Timber Marketing Ltd
Leeds City Council,City Development,Highways,Premises,Grounds Maintenance Work,111,16-Aug-11,1108-00197,553.75,R,Ainsty Timber Marketing Ltd
Leeds City Council,City Development,Highways,Premises,Grounds Maintenance Work,111,16-Aug-11,1108-00198,"2,787.50",R,Ainsty Timber Marketing Ltd
Leeds City Council,City Development,Highways,Premises,Grounds Maintenance Work,111,16-Aug-11,1108-00199,"7,203.63",R,Ainsty Timber Marketing Ltd
Leeds City Council,City Development,Highways,Premises,Grounds Maintenance Work,111,31-Aug-11,1108-00200,"20,799.41",R,Ainsty Timber Marketing Ltd
Leeds City Council,City Development,Highways,Premises,Grounds Maintenance Work,111,31-Aug-11,1108-00201,763.69,R,Ainsty Timber Marketing Ltd
Leeds City Council,City Development,Highways,Premises,Grounds Maintenance Work,111,31-Aug-11,1108-00202,"4,667.11",R,Ainsty Timber Marketing Ltd
Leeds City Council,City Development,Highways,Premises,Grounds Maintenance Work,111,31-Aug-11,1108-00203,"1,000.28",R,Ainsty Timber Marketing Ltd
Leeds City Council,City Development,Highways,Premises,Grounds Maintenance Work,111,31-Aug-11,1108-00204,"1,822.48",R,Ainsty Timber Marketing Ltd
Leeds City Council,City Development,Highways,Premises,Grounds Maintenance Work,111,31-Aug-11,1108-00205,"2,906.58",R,Ainsty Timber Marketing Ltd
Leeds City Council,City Development,Highways,Premises,Grounds Maintenance Work,111,31-Aug-11,1108-00206,"14,846.50",R,Ainsty Timber Marketing Ltd
Leeds City Council,City Development,Highways,Premises,Grounds Maintenance Work,111,31-Aug-11,1108-00207,"1,373.13",R,Ainsty Timber Marketing Ltd
Leeds City Council as Accountable Body,Social Services Pooled Budgets,Jcs For People With Learning Disabilitie,Third Party Payments,Residential,580,03-Aug-11,1108-00208,"3,080.08",R,Aire House
Leeds City Council as Accountable Body,Social Services Pooled Budgets,Jcs For People With Learning Disabilitie,Third Party Payments,Residential,580,31-Aug-11,1108-00209,"3,080.08",R,Aire House
Leeds City Council,Environment & Neighbourhoods,Strategy & Commissioning,Supplies and Services,Non-Recurring Grants,227,25-Aug-11,1108-00210,"11,020.00",R,Aire Valley Homes Leeds
East - North East,East - North East,Business Improvement,Premises,Other,114,17-Aug-11,1108-00211,610.00,R,Aire Valley Landscaping Services Ltd
East - North East,East - North East,Business Improvement,Premises,Other,114,31-Aug-11,1108-00212,425.00,R,Aire Valley Landscaping Services Ltd
East - North East,East - North East,Housing Services,Premises,Horticulture Non Defined Work,112,05-Aug-11,1108-00213,495.00,R,Aire Valley Tree Services Ltd
East - North East,East - North East,Housing Services,Premises,Horticulture Non Defined Work,112,05-Aug-11,1108-00214,775.00,R,Aire Valley Tree Services Ltd
East - North East,East - North East,Housing Services,Premises,Horticulture Non Defined Work,112,12-Aug-11,1108-00215,585.00,R,Aire Valley Tree Services Ltd
Leeds City Council,Adult Social Care,Services For Older People - 65 And Over,Third Party Payments,Residential Care Emi,571,03-Aug-11,1108-00216,"17,066.90",R,Aire View Residential Home
Leeds City Council,Adult Social Care,Services For Older People - 65 And Over,Third Party Payments,Nursing Care Emi,574,03-Aug-11,1108-00217,-709.82,R,Aire View Residential Home
Leeds City Council,Adult Social Care,Services For Older People - 65 And Over,Third Party Payments,Residential,580,03-Aug-11,1108-00218,"5,910.14",R,Aire View Residential Home
Leeds City Council,Adult Social Care,Services For Older People - 65 And Over,Third Party Payments,Residential Care Emi,571,31-Aug-11,1108-00219,"32,689.22",R,Aire View Residential Home
Leeds City Council,Adult Social Care,Services For Older People - 65 And Over,Third Party Payments,Residential,580,31-Aug-11,1108-00220,"15,263.27",R,Aire View Residential Home
Leeds City Council,Adult Social Care,Services For Older People - 65 And Over,Third Party Payments,Residential,580,03-Aug-11,1108-00221,"31,827.64",R,Airedale (Goldsborough)
Leeds City Council,Adult Social Care,Services For Older People - 65 And Over,Third Party Payments,Residential,580,31-Aug-11,1108-00222,"9,790.94",R,Airedale (Goldsborough)
Leeds City Council,Adult Social Care,Services For Older People - 65 And Over,Third Party Payments,Residential,580,31-Aug-11,1108-00223,"28,370.59",R,Airedale (Goldsborough)
Leeds City Council,Environment & Neighbourhoods,Statutory Housing,Supplies and Services,Other Hired And Contracted Services,265,18-Aug-11,1108-00224,575.00,R,Aireside Housing Partnership
Leeds City Council,Environment & Neighbourhoods,Streetscene Environmental Services,Supplies and Services,Operational Materials,205,12-Aug-11,1108-00225,"9,378.81",R,Airwave Solutions Ltd
Leeds City Council,Environment & Neighbourhoods,Community Safety,Supplies and Services,Other Hired And Contracted Services,265,17-Aug-11,1108-00226,682.88,R,Airwave Solutions Ltd
Leeds City Council,Environment & Neighbourhoods,Community Safety,Supplies and Services,Other Hired And Contracted Services,265,17-Aug-11,1108-00227,"4,585.19",R,Airwave Solutions Ltd
Leeds City Council,Environment & Neighbourhoods,Community Safety,Supplies and Services,Other Hired And Contracted Services,265,19-Aug-11,1108-00228,"4,585.19",R,Airwave Solutions Ltd
Leeds City Council,City Development,Recreation,Supplies and Services,Operational Materials,205,11-Aug-11,1108-00229,"1,995.00",R,Aitkens Sportsturf Ltd
Leeds City Council,City Development,Recreation,Supplies and Services,Operational Materials,205,11-Aug-11,1108-00230,522.00,R,Aitkens Sportsturf Ltd
Leeds City Council,Adult Social Care,Services For Older People - 65 And Over,Third Party Payments,Home Care,568,03-Aug-11,1108-00231,"2,688.00",R,Aj Social Care
Leeds City Council,Adult Social Care,Services For Older People Under 65 P/Dis,Third Party Payments,Home Care,568,03-Aug-11,1108-00232,"1,075.20",R,Aj Social Care
Leeds City Council,Adult Social Care,Services For Older People - 65 And Over,Third Party Payments,Home Care,568,03-Aug-11,1108-00233,"13,717.37",R,Aj Social Care
Leeds City Council,Adult Social Care,Services For Older People Under 65 P/Dis,Third Party Payments,Home Care,568,03-Aug-11,1108-00234,"1,173.50",R,Aj Social Care
Leeds City Council,Adult Social Care,Services For Older People - 65 And Over,Third Party Payments,Home Care,568,12-Aug-11,1108-00235,"3,093.25",R,Aj Social Care
Leeds City Council,Adult Social Care,Services For Older People - 65 And Over,Third Party Payments,Home Care,568,12-Aug-11,1108-00236,"9,920.00",R,Aj Social Care
Leeds City Council,Adult Social Care,Services For Older People Under 65 P/Dis,Third Party Payments,Home Care,568,12-Aug-11,1108-00237,"1,173.50",R,Aj Social Care
Leeds City Council,Adult Social Care,Services For Older People - 65 And Over,Third Party Payments,Home Care,568,12-Aug-11,1108-00238,"3,592.62",R,Aj Social Care
East - North East,East - North East,Construction Services,Supplies and Services,Other Materials,205,03-Aug-11,1108-00239,490.52,R,Ajm Fixings & Power Tools Ltd
East - North East,East - North East,Construction Services,Supplies and Services,Other Materials,205,03-Aug-11,1108-00240,"1,761.87",R,Ajm Fixings & Power Tools Ltd
East - North East,East - North East,Construction Services,Supplies and Services,Other Materials,205,03-Aug-11,1108-00241,457.60,R,Ajm Fixings & Power Tools Ltd
East - North East,East - North East,Construction Services,Supplies and Services,Other Materials,205,03-Aug-11,1108-00242,440.00,R,Ajm Fixings & Power Tools Ltd
East - North East,East - North East,Construction Services,Supplies and Services,Other Materials,205,17-Aug-11,1108-00243,"1,730.70",R,Ajm Fixings & Power Tools Ltd
East - North East,East - North East,Construction Services,Supplies and Services,Other Materials,205,17-Aug-11,1108-00244,762.90,R,Ajm Fixings & Power Tools Ltd
East - North East,East - North East,Construction Services,Supplies and Services,Other Materials,205,17-Aug-11,1108-00245,"1,010.44",R,Ajm Fixings & Power Tools Ltd
East - North East,East - North East,Construction Services,Supplies and Services,Other Materials,205,17-Aug-11,1108-00246,"2,632.50",R,Ajm Fixings & Power Tools Ltd
East - North East,East - North East,Construction Services,Supplies and Services,Other Materials,205,24-Aug-11,1108-00247,"1,750.10",R,Ajm Fixings & Power Tools Ltd
Leeds City Council,Central & Corporate Functions,Commercial Services Trading Services,Supplies and Services,Operational Materials,205,31-Aug-11,1108-00248,719.20,R,Ajm Fixings & Power Tools Ltd
Leeds City Council,Environment & Neighbourhoods,Regeneration Management,Supplies and Services,Other Hired And Contracted Services,265,26-Aug-11,1108-00249,750.00,R,Alan Gardner Associates
Leeds City Council,City Development,"Libraries, Arts & Heritage",Supplies and Services,Bought In Professional Services,277,18-Aug-11,1108-00250,"5,000.00",R,Alchemy Fireworks Ltd
Leeds City Council,Environment & Neighbourhoods,Environmental Health,Supplies and Services,Other Hired And Contracted Services,265,02-Aug-11,1108-00251,416.79,R,Alcontrol Uk Ltd
Leeds City Council,City Development,"Libraries, Arts & Heritage",Supplies and Services,Resaleable Materials,204,12-Aug-11,1108-00252,"5,099.25",R,Alessi Uk Ltd
Leeds City Council,Adult Social Care,Services For Older People - 65 And Over,Third Party Payments,Residential Care Emi,571,03-Aug-11,1108-00253,"5,614.48",R,Alexander Residential Home
Leeds City Council as Accountable Body,Social Services Pooled Budgets,Jcs For People With Learning Disabilitie,Third Party Payments,Residential,580,03-Aug-11,1108-00254,"1,220.72",R,Alexander Residential Home
Leeds City Council,Adult Social Care,Services For Older People - 65 And Over,Third Party Payments,Residential,580,03-Aug-11,1108-00255,"24,964.36",R,Alexander Residential Home
Leeds City Council,Adult Social Care,Services For Older People Under 65 P/Dis,Third Party Payments,Residential,580,03-Aug-11,1108-00256,"1,141.84",R,Alexander Residential Home
Leeds City Council,Adult Social Care,Services For Older People - 65 And Over,Third Party Payments,Residential Care Emi,571,31-Aug-11,1108-00257,"5,614.48",R,Alexander Residential Home
Leeds City Council as Accountable Body,Social Services Pooled Budgets,Jcs For People With Learning Disabilitie,Third Party Payments,Residential,580,31-Aug-11,1108-00258,"1,220.72",R,Alexander Residential Home
Leeds City Council,Adult Social Care,Services For Older People - 65 And Over,Third Party Payments,Residential,580,31-Aug-11,1108-00259,"19,429.14",R,Alexander Residential Home
Leeds City Council,Adult Social Care,Services For Older People Under 65 P/Dis,Third Party Payments,Residential,580,31-Aug-11,1108-00260,"1,141.84",R,Alexander Residential Home
Leeds City Council,Adult Social Care,Services For Older People - 65 And Over,Third Party Payments,Residential Care Emi,571,03-Aug-11,1108-00261,"1,238.40",R,Alexandra Court
Leeds City Council,Adult Social Care,Services For Older People - 65 And Over,Third Party Payments,Residential,580,03-Aug-11,1108-00262,"9,666.92",R,Alexandra Court
Leeds City Council,Adult Social Care,Services For Older People - 65 And Over,Third Party Payments,Residential Care Emi,571,31-Aug-11,1108-00263,"1,238.40",R,Alexandra Court
Leeds City Council,Adult Social Care,Services For Older People - 65 And Over,Third Party Payments,Residential,580,31-Aug-11,1108-00264,"9,666.92",R,Alexandra Court
Leeds City Council,Environment & Neighbourhoods,Environmental Action (South),Supplies and Services,Other Hired And Contracted Services,265,03-Aug-11,1108-00265,667.00,R,Alfies Boarding Kennels
Leeds City Council,Environment & Neighbourhoods,Environmental Action (South),Supplies and Services,Other Hired And Contracted Services,265,11-Aug-11,1108-00266,614.55,R,Alfies Boarding Kennels
Leeds City Council,Environment & Neighbourhoods,Environmental Action (South),Supplies and Services,Other Hired And Contracted Services,265,23-Aug-11,1108-00267,667.00,R,Alfies Boarding Kennels
Leeds City Council,Central & Corporate Functions,Executive Support,Supplies and Services,'Well Being' Large Grants Projects,230,01-Aug-11,1108-00268,"4,842.42",R,Alfred Bagnall & Sons (Leeds) Ltd
Leeds City Council,City Development,"Libraries, Arts & Heritage",Supplies and Services,Other Hired And Contracted Services,265,04-Aug-11,1108-00269,"3,600.00",R,Alfred Bagnall & Sons (Leeds) Ltd
Leeds City Council,Central & Corporate Functions,Civic And Community Buildings,Capital,Construction,3,05-Aug-11,1108-00270,"5,954.05",C,Alfred Bagnall & Sons (Leeds) Ltd
Leeds City Council,City Development,Asset Management Services,Premises,Maintenance Of Buildings,101,17-Aug-11,1108-00271,"1,595.31",R,Alfred Bagnall & Sons (Leeds) Ltd
Leeds City Council,Central & Corporate Functions,Commercial Services Trading Services,Supplies and Services,Other Hired And Contracted Services,265,30-Aug-11,1108-00272,"7,988.67",R,Alfred Bagnall & Sons (Leeds) Ltd
Leeds City Council,Central & Corporate Functions,Commercial Services Trading Services,Supplies and Services,Other Hired And Contracted Services,265,31-Aug-11,1108-00273,"9,783.00",R,Alfred Bagnall & Sons (Leeds) Ltd
Leeds City Council,City Development,"Libraries, Arts & Heritage",Supplies and Services,Bought In Professional Services,277,31-Aug-11,1108-00274,"1,419.50",R,Alison Glew
Leeds City Council,Childrens Services,Safeguarding Targeted & Specialist,Support Services,Legal Disbursements,411,11-Aug-11,1108-00275,"2,389.17",R,Alison Hunt
Leeds City Council,Adult Social Care,Services For Older People - 65 And Over,Third Party Payments,Residential,580,03-Aug-11,1108-00276,"1,103.16",R,Allendale Residential Home
Leeds City Council,Adult Social Care,Services For Older People - 65 And Over,Third Party Payments,Residential,580,31-Aug-11,1108-00277,"1,103.16",R,Allendale Residential Home
Leeds City Council,Central & Corporate Functions,Revenues,Supplies and Services,Bank Charges,263,03-Aug-11,1108-00278,"1,066.06",R,Alliance & Leicester Commercial Bank
Leeds City Council,City Development,Recreation,Premises,Cleaning Maintenance & Toiletries,127,06-Jul-11,1108-00279,667.15,R,Alliance Disposables Ltd
Leeds City Council,City Development,Recreation,Premises,Cleaning Maintenance & Toiletries,127,17-Aug-11,1108-00280,421.30,R,Alliance Disposables Ltd
Leeds City Council,Insurance,Insurance,Supplies and Services,Other Hired And Contracted Services,265,04-Aug-11,1108-00281,806.00,R,Alliance Law Solicitors
Leeds City Council as Accountable Body,Social Services Pooled Budgets,Jcs For People With Learning Disabilitie,Third Party Payments,Home Care,568,02-Aug-11,1108-00282,979.09,R,Allied Healthcare Group Ltd
Leeds City Council as Accountable Body,Social Services Pooled Budgets,Jcs For People With Learning Disabilitie,Third Party Payments,Home Care,568,02-Aug-11,1108-00283,756.12,R,Allied Healthcare Group Ltd
Leeds City Council,Adult Social Care,Other Generic Services,Third Party Payments,Home Care,568,05-Aug-11,1108-00284,"1,840.92",R,Allied Healthcare Group Ltd
Leeds City Council,Adult Social Care,Other Generic Services,Third Party Payments,Home Care,568,05-Aug-11,1108-00285,"17,961.67",R,Allied Healthcare Group Ltd
Leeds City Council,Adult Social Care,Services For Older People - 65 And Over,Third Party Payments,Home Care,568,05-Aug-11,1108-00286,"1,356.60",R,Allied Healthcare Group Ltd
Leeds City Council,Adult Social Care,Services For Older People - 65 And Over,Third Party Payments,Home Care,568,05-Aug-11,1108-00287,508.73,R,Allied Healthcare Group Ltd
Leeds City Council,Adult Social Care,Services For Older People Under 65 P/Dis,Third Party Payments,Home Care,568,05-Aug-11,1108-00288,484.50,R,Allied Healthcare Group Ltd
Leeds City Council,Adult Social Care,Services For Older People Under 65 P/Dis,Third Party Payments,Home Care,568,05-Aug-11,1108-00289,576.30,R,Allied Healthcare Group Ltd
Leeds City Council,Adult Social Care,Services For Older People Under 65 P/Dis,Third Party Payments,Home Care,568,05-Aug-11,1108-00290,"3,648.25",R,Allied Healthcare Group Ltd
Leeds City Council,Adult Social Care,Services For Older People Under 65 P/Dis,Third Party Payments,Home Care,568,05-Aug-11,1108-00291,749.70,R,Allied Healthcare Group Ltd
Leeds City Council,Adult Social Care,Services For Older People Under 65 P/Dis,Third Party Payments,Home Care,568,05-Aug-11,1108-00292,856.80,R,Allied Healthcare Group Ltd
Leeds City Council,Adult Social Care,Services For Older People - 65 And Over,Third Party Payments,Home Care,568,05-Aug-11,1108-00293,571.20,R,Allied Healthcare Group Ltd
Leeds City Council,Adult Social Care,Services For Older People - 65 And Over,Third Party Payments,Home Care,568,05-Aug-11,1108-00294,"1,280.07",R,Allied Healthcare Group Ltd
Leeds City Council as Accountable Body,Social Services Pooled Budgets,Jcs For People With Learning Disabilitie,Third Party Payments,Home Care,568,08-Aug-11,1108-00295,425.00,R,Allied Healthcare Group Ltd
Leeds City Council as Accountable Body,Social Services Pooled Budgets,Jcs For People With Learning Disabilitie,Third Party Payments,Home Care,568,12-Aug-11,1108-00296,475.00,R,Allied Healthcare Group Ltd
Leeds City Council as Accountable Body,Social Services Pooled Budgets,Jcs For People With Learning Disabilitie,Third Party Payments,Home Care,568,12-Aug-11,1108-00297,"1,129.56",R,Allied Healthcare Group Ltd
Leeds City Council as Accountable Body,Social Services Pooled Budgets,Jcs For People With Learning Disabilitie,Third Party Payments,Home Care,568,12-Aug-11,1108-00298,"1,527.19",R,Allied Healthcare Group Ltd
Leeds City Council as Accountable Body,Social Services Pooled Budgets,Jcs For People With Learning Disabilitie,Third Party Payments,Home Care,568,12-Aug-11,1108-00299,556.92,R,Allied Healthcare Group Ltd
Leeds City Council,Adult Social Care,Services For Older People - 65 And Over,Third Party Payments,Home Care,568,19-Aug-11,1108-00300,"22,528.84",R,Allied Healthcare Group Ltd
Leeds City Council,Adult Social Care,Services For Older People Under 65 P/Dis,Third Party Payments,Home Care,568,19-Aug-11,1108-00301,"3,642.03",R,Allied Healthcare Group Ltd
Leeds City Council,Adult Social Care,Services For Older People - 65 And Over,Third Party Payments,Home Care,568,19-Aug-11,1108-00302,"10,035.56",R,Allied Healthcare Group Ltd
Leeds City Council,Adult Social Care,Services For Older People - 65 And Over,Third Party Payments,Home Care,568,19-Aug-11,1108-00303,"17,496.16",R,Allied Healthcare Group Ltd
Leeds City Council,Adult Social Care,Services For Older People Under 65 P/Dis,Third Party Payments,Home Care,568,19-Aug-11,1108-00304,923.64,R,Allied Healthcare Group Ltd
Leeds City Council,Adult Social Care,Services For Older People - 65 And Over,Third Party Payments,Home Care,568,19-Aug-11,1108-00305,"17,256.52",R,Allied Healthcare Group Ltd
Leeds City Council as Accountable Body,Social Services Pooled Budgets,Jcs For People With Learning Disabilitie,Third Party Payments,Home Care,568,19-Aug-11,1108-00306,"1,593.65",R,Allied Healthcare Group Ltd
Leeds City Council,Adult Social Care,Services For Older People - 65 And Over,Third Party Payments,Home Care,568,19-Aug-11,1108-00307,"1,428.00",R,Allied Healthcare Group Ltd
Leeds City Council,Adult Social Care,Services For Older People - 65 And Over,Third Party Payments,Home Care,568,19-Aug-11,1108-00308,494.70,R,Allied Healthcare Group Ltd
Leeds City Council,Adult Social Care,Services For Older People Under 65 P/Dis,Third Party Payments,Home Care,568,19-Aug-11,1108-00309,489.60,R,Allied Healthcare Group Ltd
Leeds City Council,Adult Social Care,Services For Older People Under 65 P/Dis,Third Party Payments,Home Care,568,19-Aug-11,1108-00310,571.20,R,Allied Healthcare Group Ltd
Leeds City Council,Adult Social Care,Services For Older People Under 65 P/Dis,Third Party Payments,Home Care,568,19-Aug-11,1108-00311,"4,180.60",R,Allied Healthcare Group Ltd
Leeds City Council,Adult Social Care,Services For Older People Under 65 P/Dis,Third Party Payments,Home Care,568,19-Aug-11,1108-00312,637.50,R,Allied Healthcare Group Ltd
Leeds City Council,Adult Social Care,Services For Older People Under 65 P/Dis,Third Party Payments,Home Care,568,19-Aug-11,1108-00313,846.60,R,Allied Healthcare Group Ltd
Leeds City Council,Adult Social Care,Services For Adults Under 65 Mental/Dis,Third Party Payments,Home Care,568,19-Aug-11,1108-00314,"1,280.07",R,Allied Healthcare Group Ltd
Leeds City Council as Accountable Body,Social Services Pooled Budgets,Jcs For People With Learning Disabilitie,Third Party Payments,Home Care,568,23-Aug-11,1108-00315,"1,467.40",R,Allied Healthcare Group Ltd
Leeds City Council as Accountable Body,Social Services Pooled Budgets,Jcs For People With Learning Disabilitie,Third Party Payments,Home Care,568,23-Aug-11,1108-00316,883.67,R,Allied Healthcare Group Ltd
Leeds City Council,Adult Social Care,Services For Older People - 65 And Over,Third Party Payments,Home Care,568,23-Aug-11,1108-00317,"12,113.94",R,Allied Healthcare Group Ltd
Leeds City Council,Adult Social Care,Services For Older People Under 65 P/Dis,Third Party Payments,Home Care,568,23-Aug-11,1108-00318,"2,464.33",R,Allied Healthcare Group Ltd
Leeds City Council,Adult Social Care,Services For Older People - 65 And Over,Third Party Payments,Home Care,568,31-Aug-11,1108-00319,"21,018.86",R,Allied Healthcare Group Ltd
Leeds City Council,Adult Social Care,Services For Older People Under 65 P/Dis,Third Party Payments,Home Care,568,31-Aug-11,1108-00320,"4,859.28",R,Allied Healthcare Group Ltd
Leeds City Council,Adult Social Care,Services For Older People - 65 And Over,Third Party Payments,Home Care,568,31-Aug-11,1108-00321,"12,171.83",R,Allied Healthcare Group Ltd
Leeds City Council,Adult Social Care,Services For Older People Under 65 P/Dis,Third Party Payments,Home Care,568,31-Aug-11,1108-00322,"2,715.33",R,Allied Healthcare Group Ltd
Leeds City Council,Adult Social Care,Services For Older People - 65 And Over,Third Party Payments,Home Care,568,31-Aug-11,1108-00323,"11,758.58",R,Allied Healthcare Group Ltd
Leeds City Council,Adult Social Care,Services For Older People - 65 And Over,Third Party Payments,Home Care,568,31-Aug-11,1108-00324,"16,684.42",R,Allied Healthcare Group Ltd
Leeds City Council,Adult Social Care,Services For Older People Under 65 P/Dis,Third Party Payments,Home Care,568,31-Aug-11,1108-00325,878.93,R,Allied Healthcare Group Ltd
Leeds City Council,Central & Corporate Functions,Commercial Services Trading Services,Supplies and Services,Other Hired And Contracted Services,265,01-Aug-11,1108-00326,"1,049.11",R,Alternative Windows (Leeds) Ltd
Leeds City Council,Environment & Neighbourhoods,South South East,Capital,Construction,3,05-Aug-11,1108-00327,"11,412.79",C,Alternative Windows (Leeds) Ltd
Leeds City Council,Environment & Neighbourhoods,South South East,Capital,Construction,3,05-Aug-11,1108-00328,"1,255.64",C,Alternative Windows (Leeds) Ltd
Leeds City Council,Central & Corporate Functions,Commercial Services Trading Services,Supplies and Services,Other Hired And Contracted Services,265,24-Aug-11,1108-00329,"3,370.00",R,Alternative Windows (Leeds) Ltd
Leeds City Council,Central & Corporate Functions,Commercial Services Trading Services,Supplies and Services,Other Hired And Contracted Services,265,31-Aug-11,1108-00330,"2,927.58",R,Alternative Windows (Leeds) Ltd
Leeds City Council,Central & Corporate Functions,Commercial Services Trading Services,Supplies and Services,Other Hired And Contracted Services,265,31-Aug-11,1108-00331,468.63,R,Alternative Windows (Leeds) Ltd
Leeds City Council,Childrens Services,Learning Skills & Universal,Supplies and Services,Young Peoples Activities,652,07-Jul-11,1108-00332,931.00,R,Alton Towers Park
Leeds City Council,Central & Corporate Functions,Commercial Services Trading Services,Supplies and Services,Operational Materials,205,31-Aug-11,1108-00333,529.94,R,Alvin Morris Ltd
Leeds City Council,City Development,Recreation,Supplies and Services,Resaleable Materials,204,19-Aug-11,1108-00334,"1,739.29",R,Amateur Swimming Association
Leeds City Council,Adult Social Care,Services For Older People - 65 And Over,Transport,Private Hire,360,18-Aug-11,1108-00335,554.70,R,Amber Taxis (Alfreton) Ltd
Leeds City Council,Childrens Services,Safeguarding Targeted & Specialist,Third Party Payments,General External Residential Placements,507,12-Aug-11,1108-00336,"16,554.00",R,Amberleigh Care Ltd
Leeds City Council,Adult Social Care,Services For Older People - 65 And Over,Third Party Payments,Residential,580,03-Aug-11,1108-00337,"2,169.00",R,Amelia House
Leeds City Council,Adult Social Care,Services For Older People - 65 And Over,Third Party Payments,Residential,580,31-Aug-11,1108-00338,"2,185.32",R,Amelia House
Leeds City Council,Adult Social Care,Services For Older People - 65 And Over,Third Party Payments,Home Care,568,04-Aug-11,1108-00339,"27,086.65",R,Anchor
Leeds City Council,Adult Social Care,Services For Older People Under 65 P/Dis,Third Party Payments,Home Care,568,04-Aug-11,1108-00340,"1,582.56",R,Anchor
Leeds City Council,Adult Social Care,Services For Older People - 65 And Over,Third Party Payments,Home Care,568,12-Aug-11,1108-00341,"7,161.16",R,Anchor
Leeds City Council,Adult Social Care,Services For Older People - 65 And Over,Third Party Payments,Home Care,568,12-Aug-11,1108-00342,"29,697.20",R,Anchor
Leeds City Council,Adult Social Care,Services For Older People - 65 And Over,Third Party Payments,Home Care,568,12-Aug-11,1108-00343,"11,947.20",R,Anchor
Leeds City Council,Adult Social Care,Services For Older People - 65 And Over,Third Party Payments,Home Care,568,12-Aug-11,1108-00344,"22,330.68",R,Anchor
Leeds City Council,Adult Social Care,Services For Older People - 65 And Over,Third Party Payments,Home Care,568,12-Aug-11,1108-00345,"3,485.32",R,Anchor
Leeds City Council,Adult Social Care,Services For Older People - 65 And Over,Third Party Payments,Home Care,568,12-Aug-11,1108-00346,"5,548.89",R,Anchor
Leeds City Council,Adult Social Care,Services For Older People Under 65 P/Dis,Third Party Payments,Home Care,568,12-Aug-11,1108-00347,"1,443.68",R,Anchor
Leeds City Council,Adult Social Care,Services For Older People - 65 And Over,Third Party Payments,Home Care,568,12-Aug-11,1108-00348,"4,131.37",R,Anchor
Leeds City Council,Adult Social Care,Services For Older People Under 65 P/Dis,Third Party Payments,Home Care,568,12-Aug-11,1108-00349,"3,035.59",R,Anchor
Leeds City Council,Adult Social Care,Services For Older People - 65 And Over,Third Party Payments,Home Care,568,12-Aug-11,1108-00350,"1,836.83",R,Anchor
Leeds City Council,Adult Social Care,Services For Older People Under 65 P/Dis,Third Party Payments,Home Care,568,12-Aug-11,1108-00351,567.16,R,Anchor
Leeds City Council,Adult Social Care,Services For Older People - 65 And Over,Third Party Payments,Home Care,568,24-Aug-11,1108-00352,"9,167.48",R,Anchor
Leeds City Council,Adult Social Care,Services For Older People - 65 And Over,Third Party Payments,Payments To Voluntary Organisations,561,26-Aug-11,1108-00353,"52,179.92",R,Anchor
Leeds City Council,Adult Social Care,Services For Older People - 65 And Over,Third Party Payments,Nursing Home,570,03-Aug-11,1108-00354,"15,691.92",R,Anchor Trust
Leeds City Council,Adult Social Care,Services For Older People Under 65 P/Dis,Third Party Payments,Nursing Home,570,03-Aug-11,1108-00355,"1,397.80",R,Anchor Trust
Leeds City Council,Adult Social Care,Services For Older People - 65 And Over,Third Party Payments,Residential Care Emi,571,03-Aug-11,1108-00356,478.68,R,Anchor Trust
Leeds City Council,Adult Social Care,Services For Older People - 65 And Over,Third Party Payments,Residential Care Emi,571,03-Aug-11,1108-00357,"1,650.04",R,Anchor Trust
Leeds City Council,Adult Social Care,Services For Older People - 65 And Over,Third Party Payments,Residential Care Emi,571,03-Aug-11,1108-00358,"8,695.38",R,Anchor Trust
Leeds City Council,Adult Social Care,Services For Older People - 65 And Over,Third Party Payments,Nursing Care Emi,574,03-Aug-11,1108-00359,"1,186.96",R,Anchor Trust
Leeds City Council,Adult Social Care,Services For Adults Under 65 Mental/Dis,Third Party Payments,Residential,580,03-Aug-11,1108-00360,"1,094.56",R,Anchor Trust
Leeds City Council,Adult Social Care,Services For Older People - 65 And Over,Third Party Payments,Residential,580,03-Aug-11,1108-00361,"3,455.85",R,Anchor Trust
Leeds City Council,Adult Social Care,Services For Older People - 65 And Over,Third Party Payments,Residential,580,03-Aug-11,1108-00362,"1,034.81",R,Anchor Trust
Leeds City Council,Adult Social Care,Services For Older People - 65 And Over,Third Party Payments,Residential,580,03-Aug-11,1108-00363,"3,178.16",R,Anchor Trust
Leeds City Council,Environment & Neighbourhoods,Strategy & Commissioning,Third Party Payments,Supporting Ppl - Block Gross Chargeable,514,12-Aug-11,1108-00364,433.97,R,Anchor Trust
Leeds City Council,Environment & Neighbourhoods,Strategy & Commissioning,Third Party Payments,Supporting Ppl - Block Gross Chargeable,514,12-Aug-11,1108-00365,"9,792.08",R,Anchor Trust
Leeds City Council,Environment & Neighbourhoods,Strategy & Commissioning,Third Party Payments,Supporting People - Block Subsidy,513,12-Aug-11,1108-00366,727.26,R,Anchor Trust
Leeds City Council,Adult Social Care,Services For Older People - 65 And Over,Third Party Payments,Nursing Home,570,31-Aug-11,1108-00367,"29,562.95",R,Anchor Trust
Leeds City Council,Adult Social Care,Services For Older People Under 65 P/Dis,Third Party Payments,Nursing Home,570,31-Aug-11,1108-00368,"1,397.80",R,Anchor Trust
Leeds City Council,Adult Social Care,Services For Older People - 65 And Over,Third Party Payments,Residential Care Emi,571,31-Aug-11,1108-00369,478.68,R,Anchor Trust
Leeds City Council,Adult Social Care,Services For Older People - 65 And Over,Third Party Payments,Residential Care Emi,571,31-Aug-11,1108-00370,"1,650.04",R,Anchor Trust
Leeds City Council,Adult Social Care,Services For Older People - 65 And Over,Third Party Payments,Residential Care Emi,571,31-Aug-11,1108-00371,"4,896.52",R,Anchor Trust
Leeds City Council,Adult Social Care,Services For Older People - 65 And Over,Third Party Payments,Nursing Care Emi,574,31-Aug-11,1108-00372,"1,186.96",R,Anchor Trust
Leeds City Council,Adult Social Care,Services For Adults Under 65 Mental/Dis,Third Party Payments,Residential,580,31-Aug-11,1108-00373,"1,094.56",R,Anchor Trust
Leeds City Council,Adult Social Care,Services For Older People - 65 And Over,Third Party Payments,Residential,580,31-Aug-11,1108-00374,"2,692.88",R,Anchor Trust
Leeds City Council,Adult Social Care,Services For Older People - 65 And Over,Third Party Payments,Residential,580,31-Aug-11,1108-00375,"8,711.61",R,Anchor Trust
Leeds City Council,Adult Social Care,Services For Older People - 65 And Over,Third Party Payments,Residential,580,31-Aug-11,1108-00376,"3,093.44",R,Anchor Trust
Leeds City Council,Adult Social Care,Services For Older People - 65 And Over,Third Party Payments,Residential Care Emi,571,03-Aug-11,1108-00377,"6,784.51",R,Anchor Trust Simon Marks Court
Leeds City Council,Adult Social Care,Services For Older People - 65 And Over,Third Party Payments,Residential,580,03-Aug-11,1108-00378,"21,599.92",R,Anchor Trust Simon Marks Court
Leeds City Council,Adult Social Care,Services For Older People - 65 And Over,Third Party Payments,Residential Care Emi,571,31-Aug-11,1108-00379,"16,116.36",R,Anchor Trust Simon Marks Court
Leeds City Council,Adult Social Care,Services For Older People - 65 And Over,Third Party Payments,Residential,580,31-Aug-11,1108-00380,"11,763.36",R,Anchor Trust Simon Marks Court
Leeds City Council,Environment & Neighbourhoods,Streetscene Environmental Services,Supplies and Services,Consultancy Services,259,05-Aug-11,1108-00381,"10,800.00",R,Andrew Arden Qc
Aire Valley Homes Leeds,Aire Valley Homes Leeds,Aire Valley Homes Leeds,Supplies and Services,Other Hired And Contracted Services,265,17-Aug-11,1108-00382,"1,600.00",R,Andrew Elliott
Aire Valley Homes Leeds,Aire Valley Homes Leeds,Aire Valley Homes Leeds,Supplies and Services,Other Hired And Contracted Services,265,18-Aug-11,1108-00383,"2,000.00",R,Andrew Elliott
Leeds City Council,Adult Social Care,Services For Older People - 65 And Over,Third Party Payments,Home Care,568,03-Aug-11,1108-00384,434.00,R,Angels Home Care Services
Leeds City Council,Adult Social Care,Services For Older People - 65 And Over,Third Party Payments,Home Care,568,03-Aug-11,1108-00385,"1,120.00",R,Angels Home Care Services
Leeds City Council,Adult Social Care,Services For Older People Under 65 P/Dis,Third Party Payments,Home Care,568,12-Aug-11,1108-00386,"1,455.40",R,Angels Home Care Services
Leeds City Council,Adult Social Care,Services For Older People - 65 And Over,Third Party Payments,Home Care,568,12-Aug-11,1108-00387,669.90,R,Angels Home Care Services
Leeds City Council,Adult Social Care,Services For Older People - 65 And Over,Third Party Payments,Home Care,568,12-Aug-11,1108-00388,"3,153.00",R,Angels Home Care Services
Leeds City Council,Adult Social Care,Services For Older People - 65 And Over,Third Party Payments,Home Care,568,18-Aug-11,1108-00389,458.00,R,Angels Home Care Services
Leeds City Council,Adult Social Care,Services For Older People - 65 And Over,Third Party Payments,Home Care,568,18-Aug-11,1108-00390,598.50,R,Angels Home Care Services
Leeds City Council,Adult Social Care,Services For Older People Under 65 P/Dis,Third Party Payments,Home Care,568,18-Aug-11,1108-00391,"1,666.00",R,Angels Home Care Services
Leeds City Council,Adult Social Care,Services For Older People - 65 And Over,Third Party Payments,Home Care,568,23-Aug-11,1108-00392,"2,030.00",R,Angels Home Care Services
Leeds City Council,Adult Social Care,Services For Older People Under 65 P/Dis,Third Party Payments,Home Care,568,26-Aug-11,1108-00393,"1,169.00",R,Angels Home Care Services
Leeds City Council,Environment & Neighbourhoods,Strategy & Commissioning,Supplies and Services,Non-Recurring Grants,227,25-Aug-11,1108-00394,"9,600.00",R,Angels Housekeeping Cic Ltd
Leeds City Council,Childrens Services,Safeguarding Targeted & Specialist,Support Services,Legal Disbursements,411,02-Aug-11,1108-00395,927.53,R,Ann M Mortimer
Leeds City Council,Childrens Services,Safeguarding Targeted & Specialist,Support Services,Legal Disbursements,411,31-Aug-11,1108-00396,692.40,R,Ann M Mortimer
Leeds City Council,City Development,"Libraries, Arts & Heritage",Supplies and Services,Resaleable Material,204,14-Jul-11,1108-00397,491.94,R,Annie Mo's
Leeds City Council,Central & Corporate Functions,Human Resources,Employees,Training Costs,071,05-Aug-11,1108-00398,499.00,R,Anslow Communications Ltd
Leeds City Council,Central & Corporate Functions,Human Resources,Employees,Training Costs,071,10-Aug-11,1108-00399,499.00,R,Anslow Communications Ltd
Leeds City Council,Central & Corporate Functions,Support And Facilities Trading Services,Supplies and Services,Operational Materials,205,12-Aug-11,1108-00400,469.00,R,Antalis Mcnaughton Limited
Leeds City Council,Central & Corporate Functions,Support And Facilities Trading Services,Supplies and Services,Operational Materials,205,12-Aug-11,1108-00401,"1,365.00",R,Antalis Mcnaughton Limited
Leeds City Council,Central & Corporate Functions,Support And Facilities Trading Services,Supplies and Services,Operational Materials,205,12-Aug-11,1108-00402,469.00,R,Antalis Mcnaughton Limited
Leeds City Council,City Development,"Libraries, Arts & Heritage",Supplies and Services,Other Hired And Contracted Services,265,26-Aug-11,1108-00403,997.50,R,Anything Audio
West - North West,West - North West,Corporate Services,Supplies and Services,Professional Advisors,259,05-Aug-11,1108-00404,"2,970.00",R,Aon Hewitt Limited
Education Leeds,Education Leeds,Education Leeds,Supplies and Services,Other Hired And Contracted Services,265,05-Aug-11,1108-00405,"2,365.00",R,Aon Hewitt Limited
Leeds City Council,Central & Corporate Functions,Audit And Risk,Supplies and Services,External Audit Fees,261,09-Aug-11,1108-00406,"3,560.00",R,Aon Hewitt Limited
Leeds City Council,Central & Corporate Functions,Commercial Services Trading Services,Transport,ExternalHire- ( Fleet Management),313,11-Aug-11,1108-00407,879.08,R,Apetito Ltd
Leeds City Council,Central & Corporate Functions,Commercial Services Trading Services,Supplies and Services,Food & Drink,231,12-Aug-11,1108-00408,"1,142.99",R,Apetito Ltd
Leeds City Council,Central & Corporate Functions,Commercial Services Trading Services,Supplies and Services,Food & Drink,231,12-Aug-11,1108-00409,806.77,R,Apetito Ltd
Leeds City Council,Central & Corporate Functions,Commercial Services Trading Services,Supplies and Services,Food & Drink,231,12-Aug-11,1108-00410,637.61,R,Apetito Ltd
Leeds City Council,Central & Corporate Functions,Commercial Services Trading Services,Supplies and Services,Food & Drink,231,12-Aug-11,1108-00411,449.82,R,Apetito Ltd
Leeds City Council,Central & Corporate Functions,Commercial Services Trading Services,Supplies and Services,Food & Drink,231,12-Aug-11,1108-00412,"1,022.49",R,Apetito Ltd
Leeds City Council,Central & Corporate Functions,Commercial Services Trading Services,Supplies and Services,Food & Drink,231,17-Aug-11,1108-00413,872.62,R,Apetito Ltd
Leeds City Council,Central & Corporate Functions,Commercial Services Trading Services,Supplies and Services,Food & Drink,231,19-Aug-11,1108-00414,764.52,R,Apetito Ltd
Leeds City Council,Central & Corporate Functions,Commercial Services Trading Services,Supplies and Services,Food & Drink,231,19-Aug-11,1108-00415,428.13,R,Apetito Ltd
Leeds City Council,Central & Corporate Functions,Commercial Services Trading Services,Supplies and Services,Food & Drink,231,19-Aug-11,1108-00416,438.08,R,Apetito Ltd
Leeds City Council,Central & Corporate Functions,Commercial Services Trading Services,Supplies and Services,Food & Drink,231,19-Aug-11,1108-00417,"1,230.46",R,Apetito Ltd
Leeds City Council,Central & Corporate Functions,Commercial Services Trading Services,Supplies and Services,Food & Drink,231,23-Aug-11,1108-00418,665.40,R,Apetito Ltd
Leeds City Council,Central & Corporate Functions,Commercial Services Trading Services,Supplies and Services,Food & Drink,231,23-Aug-11,1108-00419,460.78,R,Apetito Ltd
Leeds City Council,Central & Corporate Functions,Commercial Services Trading Services,Supplies and Services,Food & Drink,231,23-Aug-11,1108-00420,924.43,R,Apetito Ltd
Leeds City Council,Central & Corporate Functions,Commercial Services Trading Services,Supplies and Services,Food & Drink,231,23-Aug-11,1108-00421,"1,440.02",R,Apetito Ltd
Leeds City Council,Central & Corporate Functions,Commercial Services Trading Services,Supplies and Services,Food & Drink,231,23-Aug-11,1108-00422,"1,065.63",R,Apetito Ltd
Leeds City Council,Adult Social Care,Services For Older People - 65 And Over,Supplies and Services,Recurring & Major Grantss Projects,229,23-Aug-11,1108-00423,"3,287.19",R,Apna Centre Apna Lunch Club
Leeds City Council,City Development,Economic Development,Supplies and Services,Advertising,211,26-Aug-11,1108-00424,"1,700.00",R,Appeal Pr Ltd
Leeds City Council,City Development,"Libraries, Arts & Heritage",Capital,Furniture And Equipment,5,11-Aug-11,1108-00425,"1,275.90",C,Apple Display & Shopfitting Ltd
Leeds City Council as Accountable Body,Social Services Pooled Budgets,Jcs For People With Learning Disabilitie,Third Party Payments,Residential,580,03-Aug-11,1108-00426,"21,461.23",R,Applewalk Homes
Leeds City Council as Accountable Body,Social Services Pooled Budgets,Jcs For People With Learning Disabilitie,Third Party Payments,Residential,580,31-Aug-11,1108-00427,"10,647.76",R,Applewalk Homes
Leeds City Council,Central & Corporate Functions,Commercial Services Trading Services,Supplies and Services,Computer Software & Equipment,214,31-Aug-11,1108-00428,500.00,R,Appstation
East - North East,East - North East,Technical Services,Premises,General Maintenance,104,19-Aug-11,1108-00429,830.00,R,Aquaforce Plumbing Solutions Limited
Leeds City Council as Accountable Body,Social Services Pooled Budgets,Jcs For People With Learning Disabilitie,Third Party Payments,Home Care,568,04-Aug-11,1108-00430,552.04,R,Arabella Health Staffing Ltd
Leeds City Council as Accountable Body,Social Services Pooled Budgets,Jcs For People With Learning Disabilitie,Third Party Payments,Home Care,568,04-Aug-11,1108-00431,545.20,R,Arabella Health Staffing Ltd
Leeds City Council as Accountable Body,Social Services Pooled Budgets,Jcs For People With Learning Disabilitie,Third Party Payments,Home Care,568,04-Aug-11,1108-00432,503.15,R,Arabella Health Staffing Ltd
Leeds City Council as Accountable Body,Social Services Pooled Budgets,Jcs For People With Learning Disabilitie,Third Party Payments,Home Care,568,04-Aug-11,1108-00433,749.75,R,Arabella Health Staffing Ltd
Leeds City Council as Accountable Body,Social Services Pooled Budgets,Jcs For People With Learning Disabilitie,Third Party Payments,Home Care,568,04-Aug-11,1108-00434,720.47,R,Arabella Health Staffing Ltd
Leeds City Council as Accountable Body,Social Services Pooled Budgets,Jcs For People With Learning Disabilitie,Third Party Payments,Home Care,568,04-Aug-11,1108-00435,417.00,R,Arabella Health Staffing Ltd
Leeds City Council as Accountable Body,Social Services Pooled Budgets,Jcs For People With Learning Disabilitie,Third Party Payments,Home Care,568,11-Aug-11,1108-00436,552.04,R,Arabella Health Staffing Ltd
Leeds City Council as Accountable Body,Social Services Pooled Budgets,Jcs For People With Learning Disabilitie,Third Party Payments,Home Care,568,11-Aug-11,1108-00437,"1,036.27",R,Arabella Health Staffing Ltd
Leeds City Council as Accountable Body,Social Services Pooled Budgets,Jcs For People With Learning Disabilitie,Third Party Payments,Home Care,568,11-Aug-11,1108-00438,581.10,R,Arabella Health Staffing Ltd
Leeds City Council as Accountable Body,Social Services Pooled Budgets,Jcs For People With Learning Disabilitie,Third Party Payments,Home Care,568,11-Aug-11,1108-00439,423.72,R,Arabella Health Staffing Ltd
Leeds City Council as Accountable Body,Social Services Pooled Budgets,Jcs For People With Learning Disabilitie,Third Party Payments,Home Care,568,11-Aug-11,1108-00440,417.00,R,Arabella Health Staffing Ltd
Leeds City Council as Accountable Body,Social Services Pooled Budgets,Jcs For People With Learning Disabilitie,Third Party Payments,Home Care,568,17-Aug-11,1108-00441,"1,624.80",R,Arabella Health Staffing Ltd
Leeds City Council as Accountable Body,Social Services Pooled Budgets,Jcs For People With Learning Disabilitie,Third Party Payments,Home Care,568,17-Aug-11,1108-00442,645.50,R,Arabella Health Staffing Ltd
Leeds City Council as Accountable Body,Social Services Pooled Budgets,Jcs For People With Learning Disabilitie,Third Party Payments,Home Care,568,17-Aug-11,1108-00443,511.19,R,Arabella Health Staffing Ltd
Leeds City Council as Accountable Body,Social Services Pooled Budgets,Jcs For People With Learning Disabilitie,Third Party Payments,Home Care,568,17-Aug-11,1108-00444,849.11,R,Arabella Health Staffing Ltd
Leeds City Council as Accountable Body,Social Services Pooled Budgets,Jcs For People With Learning Disabilitie,Third Party Payments,Home Care,568,26-Aug-11,1108-00445,860.03,R,Arabella Health Staffing Ltd
Leeds City Council as Accountable Body,Social Services Pooled Budgets,Jcs For People With Learning Disabilitie,Third Party Payments,Home Care,568,26-Aug-11,1108-00446,"1,624.80",R,Arabella Health Staffing Ltd
Leeds City Council as Accountable Body,Social Services Pooled Budgets,Jcs For People With Learning Disabilitie,Third Party Payments,Home Care,568,26-Aug-11,1108-00447,641.90,R,Arabella Health Staffing Ltd
Leeds City Council as Accountable Body,Social Services Pooled Budgets,Jcs For People With Learning Disabilitie,Third Party Payments,Home Care,568,26-Aug-11,1108-00448,749.75,R,Arabella Health Staffing Ltd
Leeds City Council as Accountable Body,Social Services Pooled Budgets,Jcs For People With Learning Disabilitie,Third Party Payments,Home Care,568,26-Aug-11,1108-00449,570.95,R,Arabella Health Staffing Ltd
Leeds City Council as Accountable Body,Social Services Pooled Budgets,Jcs For People With Learning Disabilitie,Third Party Payments,Home Care,568,26-Aug-11,1108-00450,417.00,R,Arabella Health Staffing Ltd
Leeds City Council as Accountable Body,Social Services Pooled Budgets,Jcs For People With Learning Disabilitie,Third Party Payments,Home Care,568,26-Aug-11,1108-00451,"1,415.86",R,Arabella Health Staffing Ltd
Leeds City Council as Accountable Body,Social Services Pooled Budgets,Jcs For People With Learning Disabilitie,Third Party Payments,Home Care,568,31-Aug-11,1108-00452,-866.94,R,Arabella Health Staffing Ltd
Leeds City Council as Accountable Body,Social Services Pooled Budgets,Jcs For People With Learning Disabilitie,Third Party Payments,Home Care,568,31-Aug-11,1108-00453,441.05,R,Arabella Health Staffing Ltd
Leeds City Council as Accountable Body,Social Services Pooled Budgets,Jcs For People With Learning Disabilitie,Third Party Payments,Home Care,568,31-Aug-11,1108-00454,647.30,R,Arabella Health Staffing Ltd
Leeds City Council as Accountable Body,Social Services Pooled Budgets,Jcs For People With Learning Disabilitie,Third Party Payments,Home Care,568,31-Aug-11,1108-00455,"1,008.88",R,Arabella Health Staffing Ltd
Leeds City Council as Accountable Body,Social Services Pooled Budgets,Jcs For People With Learning Disabilitie,Third Party Payments,Home Care,568,31-Aug-11,1108-00456,"1,624.80",R,Arabella Health Staffing Ltd
Leeds City Council as Accountable Body,Social Services Pooled Budgets,Jcs For People With Learning Disabilitie,Third Party Payments,Home Care,568,31-Aug-11,1108-00457,552.04,R,Arabella Health Staffing Ltd
Leeds City Council as Accountable Body,Social Services Pooled Budgets,Jcs For People With Learning Disabilitie,Third Party Payments,Home Care,568,31-Aug-11,1108-00458,611.20,R,Arabella Health Staffing Ltd
Leeds City Council as Accountable Body,Social Services Pooled Budgets,Jcs For People With Learning Disabilitie,Third Party Payments,Home Care,568,31-Aug-11,1108-00459,557.53,R,Arabella Health Staffing Ltd
Leeds City Council,Central & Corporate Functions,Leeds Initiative,Supplies and Services,Computer Software & Equipment,214,10-Aug-11,1108-00460,"2,000.00",R,Arcadiahost Limited
Leeds City Council,Central & Corporate Functions,Commercial Services Trading Services,Supplies and Services,Other Hired And Contracted Services,265,19-Aug-11,1108-00461,831.13,R,Archbold Carshop Ltd
Leeds City Council,Central & Corporate Functions,Commercial Services Trading Services,Supplies and Services,Other Hired And Contracted Services,265,26-Aug-11,1108-00462,473.98,R,Archbold Carshop Ltd
Leeds City Council,Environment & Neighbourhoods,Strategy & Commissioning,Supplies and Services,Non-Recurring Grants,227,25-Aug-11,1108-00463,"52,265.00",R,Archway
Leeds City Council,Environment & Neighbourhoods,Streetscene Environmental Services,Supplies and Services,Clothing & Uniforms,241,04-Aug-11,1108-00464,"4,684.95",R,Arco Ltd
Leeds City Council,Central & Corporate Functions,Commercial Services Trading Services,Supplies and Services,Operational Materials,205,05-Aug-11,1108-00465,731.95,R,Arco Ltd
Leeds City Council,City Development,Highways,Supplies and Services,Operational Materials,205,10-Aug-11,1108-00466,581.76,R,Arco Ltd
Leeds City Council,Central & Corporate Functions,Commercial Services Trading Services,Supplies and Services,Operational Materials,205,12-Aug-11,1108-00467,480.00,R,Arco Ltd
Leeds City Council,City Development,Recreation,Supplies and Services,Clothing & Uniforms,241,12-Aug-11,1108-00468,567.98,R,Arco Ltd
Leeds City Council,City Development,Recreation,Supplies and Services,Clothing & Uniforms,241,16-Aug-11,1108-00469,-423.03,R,Arco Ltd
Leeds City Council,Environment & Neighbourhoods,Streetscene Environmental Services,Supplies and Services,Clothing & Uniforms,241,25-Aug-11,1108-00470,"2,340.00",R,Arco Ltd
Leeds City Council,Environment & Neighbourhoods,Streetscene Environmental Services,Supplies and Services,Clothing & Uniforms,241,25-Aug-11,1108-00471,"1,170.00",R,Arco Ltd
Leeds City Council,Central & Corporate Functions,Commercial Services Trading Services,Supplies and Services,Operational Materials,205,26-Aug-11,1108-00472,651.02,R,Arco Ltd
Leeds City Council,City Development,Recreation,Supplies and Services,Clothing & Uniforms,241,31-Aug-11,1108-00473,423.03,R,Arco Ltd
Leeds City Council,Environment & Neighbourhoods,Streetscene Environmental Services,Supplies and Services,Clothing & Uniforms,241,03-Aug-11,1108-00474,"1,234.80",R,Arden Winch And Company Limited
Leeds City Council,Environment & Neighbourhoods,Streetscene Environmental Services,Supplies and Services,Clothing & Uniforms,241,03-Aug-11,1108-00475,"1,431.00",R,Arden Winch And Company Limited
Leeds City Council,Environment & Neighbourhoods,Streetscene Environmental Services,Supplies and Services,Clothing & Uniforms,241,03-Aug-11,1108-00476,478.00,R,Arden Winch And Company Limited
Leeds City Council,Childrens Services,Learning Skills & Universal,Supplies and Services,Office Furniture & Equipment,201,07-Jul-11,1108-00477,508.91,R,Argos Retail Group
Leeds City Council,Childrens Services,Safeguarding Targeted & Specialist,Supplies and Services,Operational Furniture & Equipment,203,20-Jul-11,1108-00478,624.94,R,Argos Retail Group
Leeds City Council,Environment & Neighbourhoods,Environmental Health,Supplies and Services,Other Hired And Contracted Services,265,05-Aug-11,1108-00479,551.40,R,Ari Environmental Services Ltd
Leeds City Council,Central & Corporate Functions,Commercial Services Trading Services,Transport,External Hire -Occasional,304,12-Aug-11,1108-00480,494.18,R,Arnold Clark Finance Ltd
Leeds City Council,Central & Corporate Functions,Commercial Services Trading Services,Supplies and Services,Operational Materials,205,05-Aug-11,1108-00481,497.49,R,Arnold Laver & Co Ltd
East - North East,East - North East,Construction Services,Supplies and Services,Other Materials,205,11-Aug-11,1108-00482,"1,327.97",R,Arnold Laver & Co Ltd
Leeds City Council,City Development,Highways,Supplies and Services,Operational Materials,205,19-Aug-11,1108-00483,801.22,R,Arnold Laver & Co Ltd
Leeds City Council,City Development,Highways,Supplies and Services,Operational Materials,205,19-Aug-11,1108-00484,922.50,R,Arnold Laver & Co Ltd
Leeds City Council,Adult Social Care,Services For Older People - 65 And Over,Third Party Payments,Nursing Home,570,04-Aug-11,1108-00485,"1,347.20",R,Arrigadeen Nursing Home
Leeds City Council as Accountable Body,Social Services Pooled Budgets,Jcs For People With Learning Disabilitie,Third Party Payments,Other Agency Services,561,02-Aug-11,1108-00486,"1,027.46",R,Articulate Advocacy
Leeds City Council as Accountable Body,Social Services Pooled Budgets,Jcs For People With Learning Disabilitie,Third Party Payments,Other Agency Services,561,02-Aug-11,1108-00487,733.90,R,Articulate Advocacy
Leeds City Council as Accountable Body,Social Services Pooled Budgets,Jcs For People With Learning Disabilitie,Third Party Payments,Other Agency Services,561,02-Aug-11,1108-00488,587.12,R,Articulate Advocacy
Leeds City Council as Accountable Body,Social Services Pooled Budgets,Jcs For People With Learning Disabilitie,Third Party Payments,Other Agency Services,561,02-Aug-11,1108-00489,587.12,R,Articulate Advocacy
Leeds City Council as Accountable Body,Social Services Pooled Budgets,Jcs For People With Learning Disabilitie,Third Party Payments,Other Agency Services,561,02-Aug-11,1108-00490,931.03,R,Articulate Advocacy
Leeds City Council as Accountable Body,Social Services Pooled Budgets,Jcs For People With Learning Disabilitie,Third Party Payments,Other Agency Services,561,02-Aug-11,1108-00491,587.12,R,Articulate Advocacy
Leeds City Council as Accountable Body,Social Services Pooled Budgets,Jcs For People With Learning Disabilitie,Third Party Payments,Other Agency Services,561,02-Aug-11,1108-00492,587.12,R,Articulate Advocacy
Leeds City Council as Accountable Body,Social Services Pooled Budgets,Jcs For People With Learning Disabilitie,Third Party Payments,Other Agency Services,561,02-Aug-11,1108-00493,"1,068.54",R,Articulate Advocacy
Leeds City Council as Accountable Body,Social Services Pooled Budgets,Jcs For People With Learning Disabilitie,Third Party Payments,Other Agency Services,561,02-Aug-11,1108-00494,440.34,R,Articulate Advocacy
Leeds City Council as Accountable Body,Social Services Pooled Budgets,Jcs For People With Learning Disabilitie,Third Party Payments,Other Agency Services,561,02-Aug-11,1108-00495,718.76,R,Articulate Advocacy
Leeds City Council as Accountable Body,Social Services Pooled Budgets,Jcs For People With Learning Disabilitie,Third Party Payments,Other Agency Services,561,02-Aug-11,1108-00496,"1,074.74",R,Articulate Advocacy
Leeds City Council,Adult Social Care,Social Services Support Services,Third Party Payments,Payments To Voluntary Organisations,561,15-Aug-11,1108-00497,"11,551.25",R,Articulate Advocacy
Leeds City Council,Childrens Services,Learning Skills & Universal,Transport,Fuel (Non LCC Supplies),321,05-Aug-11,1108-00498,"3,650.76",R,Arval Phh Business Solutions Ltd
Leeds City Council,Central & Corporate Functions,Commercial Services Trading Services,Supplies and Services,Other Hired And Contracted Services,265,05-Aug-11,1108-00499,622.50,R,Asbestos Sample Analysis Limited
Leeds City Council,Central & Corporate Functions,Commercial Services Trading Services,Supplies and Services,Other Hired And Contracted Services,265,12-Aug-11,1108-00500,517.50,R,Asbestos Sample Analysis Limited
Leeds City Council,Central & Corporate Functions,Commercial Services Trading Services,Supplies and Services,Other Hired And Contracted Services,265,19-Aug-11,1108-00501,540.00,R,Asbestos Sample Analysis Limited
Leeds City Council,Central & Corporate Functions,Commercial Services Trading Services,Supplies and Services,Other Hired And Contracted Services,265,31-Aug-11,1108-00502,420.00,R,Asbestos Sample Analysis Limited
Leeds City Council,Central & Corporate Functions,Commercial Services Trading Services,Supplies and Services,Other Hired And Contracted Services,265,31-Aug-11,1108-00503,735.00,R,Asbestos Sample Analysis Limited
Leeds City Council,Central & Corporate Functions,Financial Management,Supplies and Services,Books & Publications,206,20-Jul-11,1108-00504,423.47,R,Ascertiva Group lT
Leeds City Council,Central & Corporate Functions,Support And Facilities Trading Services,Supplies and Services,Operational Materials,205,12-Aug-11,1108-00505,"2,662.00",R,Asd Metal Services
Leeds City Council,Adult Social Care,Services For Older People - 65 And Over,Third Party Payments,Residential,580,03-Aug-11,1108-00506,"9,632.12",R,Ashcroft House Residential Home
Leeds City Council,Adult Social Care,Services For Older People - 65 And Over,Third Party Payments,Residential,580,31-Aug-11,1108-00507,"16,367.24",R,Ashcroft House Residential Home
Leeds City Council,Adult Social Care,Services For Older People - 65 And Over,Third Party Payments,Nursing Home,570,03-Aug-11,1108-00508,"3,753.12",R,Ashcroft Nursing Home
Leeds City Council,Adult Social Care,Services For Older People - 65 And Over,Third Party Payments,Nursing Home,570,03-Aug-11,1108-00509,"1,209.96",R,Ashcroft Nursing Home
Leeds City Council,Adult Social Care,Services For Older People - 65 And Over,Third Party Payments,Residential Care Emi,571,03-Aug-11,1108-00510,782.16,R,Ashcroft Nursing Home
Leeds City Council,Adult Social Care,Services For Older People - 65 And Over,Third Party Payments,Residential,580,03-Aug-11,1108-00511,"4,671.11",R,Ashcroft Nursing Home
